{"text_format":"3","workbook":"xlsx","n_sheets":1,"sheets":["IZVJEŠĆE O TROŠKOVIMA"],"not_rendered":{"defined_names":4},"read":"whole","date_system":"1900"}

{"sheet":"IZVJEŠĆE O TROŠKOVIMA","index":0,"n_rows":22,"n_cols":12,"rows_kept":22,"merged":[[1,2,1,3],[1,5,1,6],[3,2,3,3],[3,6,3,7],[3,10,3,11],[4,2,4,3],[4,6,4,7],[4,10,4,11],[20,2,20,4],[20,6,20,8],[21,2,21,4],[21,6,21,8]]}
[null,"IZVJEŠĆE O TROŠKOVIMA",{"$nulls":8},"Samo za internu upotrebu"]
[null,"SVRHA:",null,null,"BROJ IZVJEŠĆA:",null,null,"PLATNO RAZDOBLJE","OD:",{"$f":"IF(COUNTA(Podaci_o_troškovima[Datum])=0,\"\",MIN(Podaci_o_troškovima[Datum]))","v":""},"DO:",{"$f":"IF(COUNTA(Podaci_o_troškovima[Datum])=0,\"\",MAX(Podaci_o_troškovima[Datum]))","v":""}]
[null,"PODACI O ZAPOSLENIKU:"]
[null,"IME I PREZIME",{"$nulls":3},"POLOŽAJ",{"$nulls":3},"BROJ OSIGURANJA"]
[null,"ODJEL",{"$nulls":3},"RUKOVODITELJ",{"$nulls":3},"ID ZAPOSLENIKA"]
[]
[null,"Datum","Račun","Opis","Hotel","Prijevoz","Gorivo","Obroci","Telefon","Zabava","Ostalo","Ukupno"]
[{"$nulls":11},{"$f":"SUM(Podaci_o_troškovima[[#This Row],[Hotel]:[Ostalo]])","v":{"v":0,"d":"0.00 kn"}}]
[{"$nulls":11},{"$f":"SUM(Podaci_o_troškovima[[#This Row],[Hotel]:[Ostalo]])","v":{"v":0,"d":"0.00 kn"}}]
[{"$nulls":11},{"$f":"SUM(Podaci_o_troškovima[[#This Row],[Hotel]:[Ostalo]])","v":{"v":0,"d":"0.00 kn"}}]
[{"$nulls":11},{"$f":"SUM(Podaci_o_troškovima[[#This Row],[Hotel]:[Ostalo]])","v":{"v":0,"d":"0.00 kn"}}]
[{"$nulls":11},{"$f":"SUM(Podaci_o_troškovima[[#This Row],[Hotel]:[Ostalo]])","v":{"v":0,"d":"0.00 kn"}}]
[{"$nulls":11},{"$f":"SUM(Podaci_o_troškovima[[#This Row],[Hotel]:[Ostalo]])","v":{"v":0,"d":"0.00 kn"}}]
[{"$nulls":11},{"$f":"SUM(Podaci_o_troškovima[[#This Row],[Hotel]:[Ostalo]])","v":{"v":0,"d":"0.00 kn"}}]
[{"$nulls":11},{"$f":"SUM(Podaci_o_troškovima[[#This Row],[Hotel]:[Ostalo]])","v":{"v":0,"d":"0.00 kn"}}]
[{"$nulls":11},{"$f":"SUM(Podaci_o_troškovima[[#This Row],[Hotel]:[Ostalo]])","v":{"v":0,"d":"0.00 kn"}}]
[{"$nulls":11},{"$f":"SUM(Podaci_o_troškovima[[#This Row],[Hotel]:[Ostalo]])","v":{"v":0,"d":"0.00 kn"}}]
[{"$nulls":11},{"$f":"SUM(Podaci_o_troškovima[[#This Row],[Hotel]:[Ostalo]])","v":{"v":0,"d":"0.00 kn"}}]
[null,"Zbroj",null,null,{"$f":"SUBTOTAL(109,Podaci_o_troškovima[Hotel])","v":{"v":0,"d":"0.00 kn"}},{"$f":"SUBTOTAL(109,Podaci_o_troškovima[Prijevoz])","v":{"v":0,"d":"0.00 kn"}},{"$f":"SUBTOTAL(109,Podaci_o_troškovima[Gorivo])","v":{"v":0,"d":"0.00 kn"}},{"$f":"SUBTOTAL(109,Podaci_o_troškovima[Obroci])","v":{"v":0,"d":"0.00 kn"}},{"$f":"SUBTOTAL(109,Podaci_o_troškovima[Telefon])","v":{"v":0,"d":"0.00 kn"}},{"$f":"SUBTOTAL(109,Podaci_o_troškovima[Zabava])","v":{"v":0,"d":"0.00 kn"}},{"$f":"SUBTOTAL(109,Podaci_o_troškovima[Ostalo])","v":{"v":0,"d":"0.00 kn"}},{"$f":"SUBTOTAL(109,Podaci_o_troškovima[Ukupno])","v":{"v":0,"d":"0.00 kn"}}]
[{"$nulls":10},"PODZBROJ",{"$f":"Podaci_o_troškovima[[#Totals],[Ukupno]]","v":{"v":0,"d":"0.00 kn"}}]
[null,"ODOBRIO:",{"$nulls":3},"NAPOMENE: ",{"$nulls":4},"PREDUJAM",{"v":0,"d":"0.00 kn"}]
[{"$nulls":10},"UKUPNO",{"$f":"Podzbroj-Predujam","v":{"v":0,"d":"0.00 kn"}}]